{"text_format":"1","workbook":"xlsx","n_sheets":2,"sheets":["Contact_List","phone list"],"not_rendered":{"charts":0,"images":0,"macros":1,"external_links":0,"defined_names":8,"comments":1,"pivot_tables":0},"unopened":[],"bounds":{"document_bytes":16777216,"sheet_cells":100000,"rows_first":2000,"rows_last":500,"rows_between":2000,"halvings":0,"cell_chars":16384,"cell_head_chars":4096},"cells_cut":0,"cells_raw":0,"read":"whole","date_system":"1900"}

{"sheet":"Contact_List","index":0,"n_rows":218,"n_cols":45,"rows_kept":218,"cut":false,"hidden":false,"merged":[[1,23,1,25],[0,23,0,25]]}
[null,null,null,null,null,null,null,null,null,null,null,null,null,null,null,null,null,null,null,null,"s",null,null,"OFFICE OF CONTRACT AND GRANT ACCOUNTING"]
[null,null,null,null,null,null,null,null,null,null,null,null,null,null,"dynamic range",null,null,null,null,null,null,null,null,"CONTACT LIST",null,null,null,null,null,null,null,null,null,null,null,"Criteria"]
["Federal","Last 4 Digits of Center Number","Agency Type","School_Or_Department","POD","Center","Center_School","Responsible Person","Phone","email",null,null,null,null,null,null,null,null,null,null,null,null,null,null,null,null,null,null,null,null,null,null,null,null,null,"Federal","Last 4 Digits of Center Number","Agency Type","School_Or_Department","POD","Center","Center_School","Responsible Person","Phone","email"]
["Federal","001x-199x","Health and Human Services (HHS)-[i.e. NIH, HRSA, ACL, etc.)","Arts & Sciences","N/A","4-20-xxx","4-20-xxx / Arts & Sciences","Gloria Mayberry","615-343-0133","gloria.c.mayberry@vanderbilt.edu",null,null,null,"Federal","School_Or_Department",null,"POD","Center_School","*","Responsible Person","Agency Type",null,"School / Department","Note: Filters are optional. To view the full list of Contacts , leave all filters blank and Click \"View Filtered Contact List\" button.  To startover Click \"Clear Contents\" button . Single or Multiple filters can be applied.",null,null,null,null,null,null,null,null,null,null,null,{"$f":"W19","v":"*"},"*","*","*","*","","*","*","*","*"]
["Federal","001x-199x","Health and Human Services (HHS)-[i.e. NIH, HRSA, ACL, etc.)","Engineering","N/A","4-22-xxx","4-22-xxx / Engineering","Gloria Mayberry","615-343-0133","gloria.c.mayberry@vanderbilt.edu",null,null,null,"Non Federal",null,"*","POD 2",null,"*",null,null,"*",null,"Optional"]
["Federal","001x-199x","Health and Human Services (HHS)-[i.e. NIH, HRSA, ACL, etc.)","Divinity","N/A","4-23-xxx","4-23-xxx / Divinity","Gloria Mayberry","615-343-0133","gloria.c.mayberry@vanderbilt.edu",null,null,null,"Federal","All Schools/Departments/Centers/Institutes","*","POD 3","4-20-xxx / Arts & Sciences","*","Chrystie Anderson","Association","*",null,"Filters"]
["Federal","001x-199x","Health and Human Services (HHS)-[i.e. NIH, HRSA, ACL, etc.)","Law","N/A","4-24-xxx","4-24-xxx / Law","Gloria Mayberry","615-343-0133","gloria.c.mayberry@vanderbilt.edu",null,null,null,null,"Arts & Sciences","*",null,"4-22-xxx / Engineering","*","Denise Johnson","Commerce","*","Federal"]
["Federal","001x-199x","Health and Human Services (HHS)-[i.e. NIH, HRSA, ACL, etc.)","Owen","N/A","4-25-xxx","4-25-xxx / Owen","Gloria Mayberry","615-343-0133","gloria.c.mayberry@vanderbilt.edu",null,null,null,null,"Blair","*",null,"4-23-xxx / Divinity","*","Donna Irwin","Corporation","*","School / Department"]
["Federal","001x-199x","Health and Human Services (HHS)-[i.e. NIH, HRSA, ACL, etc.)","Blair","N/A","4-27-xxx","4-27-xxx / Blair","Gloria Mayberry","615-343-0133","gloria.c.mayberry@vanderbilt.edu",null,null,null,null,"Divinity","*",null,"4-24-xxx / Law","*","Emma Pacilli","Corporation for National and Community Service (CNS)","*","POD"]
["Federal","001x-199x","Health and Human Services (HHS)-[i.e. NIH, HRSA, ACL, etc.)","Various Center/Institutes/Departments","N/A","4-30-xxx to 4-70-xxx","4-30-xxx to 4-70-xxx / Various Center/Institutes/Departments","Gloria Mayberry","615-343-0133","gloria.c.mayberry@vanderbilt.edu",null,null,null,null,"Engineering","*",null,"4-25-xxx / Owen","*","Gloria Mayberry","Department of Defense (DOD) [DARPA & DTRA]","*","Center/School"]
["Federal","001x-199x","Health and Human Services (HHS)-[i.e. NIH, HRSA, ACL, etc.)","School of Medicine - Center for Neuroscience Drug Discovery","POD 3","4-28-208","4-28-208 / School of Medicine - Center for Neuroscience Drug Discovery","Michele Espy Dixon","615-343-2930","michele.espy@Vanderbilt.Edu",null,null,null,null,"Law","*",null,"4-26-xxx / Peabody","*","Jasmine Bellamy","Department of Education (ED)","*","Accountant"]
["Federal","001x-199x","NA","School of Medicine - Vanderbilt Brain Institute","N/A","4-28-217","4-28-217 / School of Medicine - Vanderbilt Brain Institute","Michele Espy Dixon","615-343-2930","michele.espy@Vanderbilt.Edu",null,null,null,null,"Owen","*",null,"4-27-xxx / Blair","*","Michele Espy Dixon","Department of Energy (DOE)","*","Agency Type"]
["Federal","001x-199x","Health and Human Services (HHS)-[i.e. NIH, HRSA, ACL, etc.)","School of Medicine - Center for Human Genetics","POD 3","4-28-226 & 274","4-28-226 & 274 / School of Medicine - Center for Human Genetics","Michele Espy Dixon","615-343-2930","michele.espy@Vanderbilt.Edu",null,null,null,null,"Peabody","*",null,"4-28-17x- & 14x / School of Medicine - Graduate Programs (BRET)","*","Olivia Soxayachanh","Department of Homeland Security","*","Center  range"]
["Federal","001x-199x","Health and Human Services (HHS)-[i.e. NIH, HRSA, ACL, etc.)","School of Medicine - Center for Molecular Neuroscience","POD 3","4-28-239","4-28-239 / School of Medicine - Center for Molecular Neuroscience","Michele Espy Dixon","615-343-2930","michele.espy@Vanderbilt.Edu",null,null,null,null,"School of Medicine - Biochemistry","*",null,"4-28-208 / School of Medicine - Center for Neuroscience Drug Discovery","*",null,"Department of Justice","*","Center Last 4 Digit"]
["Federal","001x-199x","N/A","School of Medicine - Graduate Programs (BRET)","N/A","4-28-17x- & 14x","4-28-17x- & 14x / School of Medicine - Graduate Programs (BRET)","Michele Espy Dixon","615-343-2930","michele.espy@Vanderbilt.Edu",null,null,null,null,"School of Medicine - Cancer Biology","*",null,"4-28-209 / School of Medicine - Vanderbilt Institute of Chemical Biology (VCB)","*",null,"Department of Labor","*","Phone"]
["Non Federal","501x - 549x","State of Tennessee and Other States","School of Medicine - Center for Neuroscience Drug Discovery","POD 3","4-28-208","4-28-208 / School of Medicine - Center for Neuroscience Drug Discovery","Chrystie Anderson","615-322-2274","chrystie.anderson@vanderbilt.edu",null,null,null,null,"School of Medicine - Cell & Developmental Biology","*",null,"4-28-212 & 275 / School of Medicine - Center for Stem Cell Biology","*",null,"Department of State","*","email"]
["Federal","001x-199x","Health and Human Services (HHS)-[i.e. NIH, HRSA, ACL, etc.)","School of Medicine -Molecular Physiology & Biophysics","POD 3","4-28-270 to 276 (not 274)","4-28-270 to 276 (not 274) / School of Medicine -Molecular Physiology & Biophysics","Michele Espy Dixon","615-343-2930","michele.espy@Vanderbilt.Edu",null,null,null,null,"School of Medicine - Center for Human Genetics","*",null,"4-28-217 / School of Medicine - Vanderbilt Brain Institute","*",null,"Department of Transportation","*"]
["Non Federal","562x - 611x","Association","School of Medicine - Center for Neuroscience Drug Discovery","POD 3","4-28-208","4-28-208 / School of Medicine - Center for Neuroscience Drug Discovery","Chrystie Anderson","615-322-2274","chrystie.anderson@vanderbilt.edu",null,null,null,null,"School of Medicine - Center for Molecular Neuroscience","*",null,"4-28-226 & 274 / School of Medicine - Center for Human Genetics","*",null,"Endowment","*","Federal","Last 4 Digits of Center Number","Agency Type","School_Or_Department","POD","Center","Center_School","Responsible Person","Phone","email"]
["Non Federal","612x - 695x","Foundation","School of Medicine - Center for Neuroscience Drug Discovery","POD 3","4-28-208","4-28-208 / School of Medicine - Center for Neuroscience Drug Discovery","Chrystie Anderson","615-322-2274","chrystie.anderson@vanderbilt.edu",null,null,null,null,"School of Medicine - Center for Neuroscience Drug Discovery","*",null,"4-28-227 to 228 / School of Medicine - Environmental Toxicology","*",null,"Environmental Protection Agency (EPA)","*",{"$f":"IF(X7<>\"\",X7,\"*\")","v":"*"},{"$f":"IF(X14=\"\",\"*\",\"*\"&X14&\"*\")","v":"*"},{"$f":"IF(X12<>\"\",\"*\"&X12&\"*\",\"*\")","v":"*"},{"$f":"IF(X8<>\"\",X8,\"*\")","v":"*"},{"$f":"IF(X9<>\"\",X9,\"*\")","v":"*"},{"$f":"IF(OR(X13=0,X13= \"\"),\"\",\"*\"&X13&\"*\")","v":""},{"$f":"IF(X10=\"\",\"*\",X10)","v":"*"},{"$f":"IF(OR(X11=0,X11= \"\"),\"*\",\"*\"&X11&\"*\")","v":"*"},{"$f":"IF(OR(X15=0,X15= \"\"),\"*\",\"*\"&X15&\"*\")","v":"*"},{"$f":"IF(OR(X16=0,X16= \"\"),\"*\",\"*\"&X16&\"*\")","v":"*"}]
["Federal","001x-199x","NA","School of Medicine - Cancer Biology","N/A","4-28-286 to 288","4-28-286 to 288 / School of Medicine - Cancer Biology","Michele Espy Dixon","615-343-2930","michele.espy@Vanderbilt.Edu",null,null,null,null,"School of Medicine - Center for Stem Cell Biology","*",null,"4-28-229 / School of Medicine - Mass Spectometry","*",null,"Foundation","*","Displaying Filtered Contact List"]
["Federal","001x-199x","Health and Human Services (HHS)-[i.e. NIH, HRSA, ACL, etc.)","School of Medicine - Pharmacology","POD 3","4-28-290 & 294 & 295","4-28-290 & 294 & 295 / School of Medicine - Pharmacology","Michele Espy Dixon","615-343-2930","michele.espy@Vanderbilt.Edu",null,null,null,null,"School of Medicine - Center for Structural Biology","*",null,"4-28-230 / School of Medicine - Center for Structural Biology","*",null,"Health and Human Services (HHS)-[i.e. NIH, HRSA, ACL, etc.)","*","Federal","Last 4 Digits of Center Number","Agency Type","School_Or_Department","POD","Center","Center_School","Responsible Person","Phone","email"]
["Federal","001x-199x","Health and Human Services (HHS)-[i.e. NIH, HRSA, ACL, etc.)","School of Medicine - Drug Discovery (within Pharmacology)","POD 3","4-28-297","4-28-297 / School of Medicine - Drug Discovery (within Pharmacology)","Michele Espy Dixon","615-343-2930","michele.espy@Vanderbilt.Edu",null,null,null,null,"School of Medicine - Drug Discovery (within Pharmacology)","*",null,"4-28-239 / School of Medicine - Center for Molecular Neuroscience","*",null,"Housing and Urban Development","*","Non Federal","501x - 549x","State of Tennessee and Other States","Arts & Sciences","N/A","4-20-xxx","4-20-xxx / Arts & Sciences","Jasmine Bellamy","615-343-6637","jasmine.c.bellamy@Vanderbilt.Edu"]
["Federal","001x-199x","Health and Human Services (HHS)-[i.e. NIH, HRSA, ACL, etc.)","Peabody","N/A","4-26-xxx","4-26-xxx / Peabody","Olivia Soxayachanh","615-343-6671","olivia.soxayachanh@Vanderbilt.Edu",null,null,null,null,"School of Medicine - Environmental Toxicology","*",null,"4-28-250 to 253 & 256 / School of Medicine - Biochemistry","*",null,"International","*","Non Federal","501x - 549x","State of Tennessee and Other States","Engineering","N/A","4-22-xxx","4-22-xxx / Engineering","Jasmine Bellamy","615-343-6637","jasmine.c.bellamy@Vanderbilt.Edu"]
["Federal","001x-199x","Health and Human Services (HHS)-[i.e. NIH, HRSA, ACL, etc.)","School of Medicine - Vanderbilt Institute of Chemical Biology (VCB)","POD 2","4-28-209","4-28-209 / School of Medicine - Vanderbilt Institute of Chemical Biology (VCB)","Olivia Soxayachanh","615-343-6671","olivia.soxayachanh@Vanderbilt.Edu",null,null,null,null,"School of Medicine - Graduate Programs (BRET)","*",null,"4-28-270 to 276 (not 274) / School of Medicine -Molecular Physiology & Biophysics","*",null,"Invoicing","*","Non Federal","501x - 549x","State of Tennessee and Other States","Law","N/A","4-24-xxx","4-24-xxx / Law","Jasmine Bellamy","615-343-6637","jasmine.c.bellamy@Vanderbilt.Edu"]
["Federal","001x-199x","Health and Human Services (HHS)-[i.e. NIH, HRSA, ACL, etc.)","School of Medicine - Center for Stem Cell Biology","POD 2","4-28-212 & 275","4-28-212 & 275 / School of Medicine - Center for Stem Cell Biology","Olivia Soxayachanh","615-343-6671","olivia.soxayachanh@Vanderbilt.Edu",null,null,null,null,"School of Medicine - Mass Spectometry","*",null,"4-28-280 to 282 / School of Medicine - Cell & Developmental Biology","*",null,"Multiple Sources (Gifts)","*","Non Federal","501x - 549x","State of Tennessee and Other States","Owen","N/A","4-25-xxx","4-25-xxx / Owen","Jasmine Bellamy","615-343-6637","jasmine.c.bellamy@Vanderbilt.Edu"]
["Federal","001x-199x","Health and Human Services (HHS)-[i.e. NIH, HRSA, ACL, etc.)","School of Medicine - Environmental Toxicology","POD 2","4-28-227 to 228","4-28-227 to 228 / School of Medicine - Environmental Toxicology","Olivia Soxayachanh","615-343-6671","olivia.soxayachanh@Vanderbilt.Edu",null,null,null,null,"School of Medicine - Pharmacology","*",null,"4-28-286 to 288 / School of Medicine - Cancer Biology","*",null,"Municipality","*","Non Federal","501x - 549x","State of Tennessee and Other States","Blair","N/A","4-27-xxx","4-27-xxx / Blair","Jasmine Bellamy","615-343-6637","jasmine.c.bellamy@Vanderbilt.Edu"]
["Federal","001x-199x","Health and Human Services (HHS)-[i.e. NIH, HRSA, ACL, etc.)","School of Medicine - Mass Spectometry","POD 2","4-28-229","4-28-229 / School of Medicine - Mass Spectometry","Olivia Soxayachanh","615-343-6671","olivia.soxayachanh@Vanderbilt.Edu",null,null,null,null,"School of Medicine - Vanderbilt Brain Institute","*",null,"4-28-290 & 294 & 295 / School of Medicine - Pharmacology","*",null,"National Aeronautics and Space Administration (NASA)","*","Non Federal","501x - 549x","State of Tennessee and Other States","School of Medicine - Vanderbilt Institute of Chemical Biology (VCB)","POD 2","4-28-209","4-28-209 / School of Medicine - Vanderbilt Institute of Chemical Biology (VCB)","Jasmine Bellamy","615-343-6637","jasmine.c.bellamy@Vanderbilt.Edu"]
["Federal","001x-199x","Health and Human Services (HHS)-[i.e. NIH, HRSA, ACL, etc.)","School of Medicine - Center for Structural Biology","POD 2","4-28-230","4-28-230 / School of Medicine - Center for Structural Biology","Olivia Soxayachanh","615-343-6671","olivia.soxayachanh@Vanderbilt.Edu",null,null,null,null,"School of Medicine - Vanderbilt Institute of Chemical Biology (VCB)","*",null,"4-28-297 / School of Medicine - Drug Discovery (within Pharmacology)","*",null,"National Foundation on Arts and Humanities","*","Non Federal","501x - 549x","State of Tennessee and Other States","School of Medicine - Center for Stem Cell Biology","POD 2","4-28-212 & 275","4-28-212 & 275 / School of Medicine - Center for Stem Cell Biology","Jasmine Bellamy","615-343-6637","jasmine.c.bellamy@Vanderbilt.Edu"]
["Federal","001x-199x","Health and Human Services (HHS)-[i.e. NIH, HRSA, ACL, etc.)","School of Medicine - Biochemistry","POD 2","4-28-250 to 253 & 256","4-28-250 to 253 & 256 / School of Medicine - Biochemistry","Olivia Soxayachanh","615-343-6671","olivia.soxayachanh@Vanderbilt.Edu",null,null,null,null,"School of Medicine -Molecular Physiology & Biophysics","*",null,"4-30-xxx to 4-70-xxx / Various Center/Institutes/Departments","*",null,"National Science Foundation (NSF)","*","Non Federal","501x - 549x","State of Tennessee and Other States","School of Medicine - Environmental Toxicology","POD 2","4-28-227 to 228","4-28-227 to 228 / School of Medicine - Environmental Toxicology","Jasmine Bellamy","615-343-6637","jasmine.c.bellamy@Vanderbilt.Edu"]
["Federal","001x-199x","Health and Human Services (HHS)-[i.e. NIH, HRSA, ACL, etc.)","School of Medicine - Cell & Developmental Biology","POD 2","4-28-280 to 282","4-28-280 to 282 / School of Medicine - Cell & Developmental Biology","Olivia Soxayachanh","615-343-6671","olivia.soxayachanh@Vanderbilt.Edu",null,null,null,null,"Various Center/Institutes/Departments","*",null,"N/A / All Schools/Departments/Centers/Institutes","*",null,"Nuclear Regulatory Commission","*","Non Federal","501x - 549x","State of Tennessee and Other States","School of Medicine - Mass Spectometry","POD 2","4-28-229","4-28-229 / School of Medicine - Mass Spectometry","Jasmine Bellamy","615-343-6637","jasmine.c.bellamy@Vanderbilt.Edu"]
["Federal","200x - 299x","Department of Education (ED)","All Schools/Departments/Centers/Institutes","N/A","N/A","N/A / All Schools/Departments/Centers/Institutes","Donna Irwin","615-343-6682","donna.irwin@vanderbilt.edu",null,null,null,null,null,"*",null,null,"*",null,"Recharge & Internally Designated Centers x-888-xxxx or x-999-xxxx","*","Non Federal","501x - 549x","State of Tennessee and Other States","School of Medicine - Center for Structural Biology","POD 2","4-28-230","4-28-230 / School of Medicine - Center for Structural Biology","Jasmine Bellamy","615-343-6637","jasmine.c.bellamy@Vanderbilt.Edu"]
["Federal","300x - 349x","National Science Foundation (NSF)","All Schools/Departments/Centers/Institutes","N/A","N/A","N/A / All Schools/Departments/Centers/Institutes","Denise Johnson","615-343-6672","denise.c.johnson@Vanderbilt.Edu",null,null,null,null,null,"*",null,null,"*",null,"State of Tennessee and Other States","*","Non Federal","501x - 549x","State of Tennessee and Other States","School of Medicine - Biochemistry","POD 2","4-28-250 to 253 & 256","4-28-250 to 253 & 256 / School of Medicine - Biochemistry","Jasmine Bellamy","615-343-6637","jasmine.c.bellamy@Vanderbilt.Edu"]
["Federal","350x - 374x","National Aeronautics and Space Administration (NASA)","All Schools/Departments/Centers/Institutes","N/A","N/A","N/A / All Schools/Departments/Centers/Institutes","Gloria Mayberry","(615) 322-4613","gloria.c.mayberry@vanderbilt.edu",null,null,null,null,null,"*",null,null,"*",null,"Subcontracts","*","Non Federal","501x - 549x","State of Tennessee and Other States","School of Medicine - Cell & Developmental Biology","POD 2","4-28-280 to 282","4-28-280 to 282 / School of Medicine - Cell & Developmental Biology","Jasmine Bellamy","615-343-6637","jasmine.c.bellamy@Vanderbilt.Edu"]
["Federal","375x - 424x","Department of Defense (DOD) [DARPA & DTRA]","All Schools/Departments/Centers/Institutes","N/A","N/A","N/A / All Schools/Departments/Centers/Institutes","Donna Irwin","615-343-6682","donna.irwin@vanderbilt.edu",null,null,null,null,null,"*",null,null,"*",null,"Tennessee Valley Authority (TVA)","*","Non Federal","501x - 549x","State of Tennessee and Other States","Various Center/Institutes/Departments","N/A","4-30-xxx to 4-70-xxx","4-30-xxx to 4-70-xxx / Various Center/Institutes/Departments","Jasmine Bellamy","615-343-6637","jasmine.c.bellamy@Vanderbilt.Edu"]
["Federal","425x - 439x","Department of Energy (DOE)","All Schools/Departments/Centers/Institutes","N/A","N/A","N/A / All Schools/Departments/Centers/Institutes","Denise Johnson","615-343-6672","denise.c.johnson@Vanderbilt.Edu",null,null,null,null,null,"*",null,null,"*",null,"University","*","Non Federal","550x - 561x","Municipality","School of Medicine - Vanderbilt Institute of Chemical Biology (VCB)","POD 2","4-28-209","4-28-209 / School of Medicine - Vanderbilt Institute of Chemical Biology (VCB)","Jasmine Bellamy","615-343-6637","jasmine.c.bellamy@Vanderbilt.Edu"]
["Federal","440x - 454x","Veteran's Administration (VA)","All Schools/Departments/Centers/Institutes","N/A","N/A","N/A / All Schools/Departments/Centers/Institutes","Donna Irwin","615-343-6682","donna.irwin@vanderbilt.edu",null,null,null,null,null,"*",null,null,"*",null,"US Agency for International Development (USAID)","*","Non Federal","550x - 561x","Municipality","School of Medicine - Center for Stem Cell Biology","POD 2","4-28-212 & 275","4-28-212 & 275 / School of Medicine - Center for Stem Cell Biology","Jasmine Bellamy","615-343-6637","jasmine.c.bellamy@Vanderbilt.Edu"]
["Federal","455x - 464x","National Foundation on Arts and Humanities","All Schools/Departments/Centers/Institutes","N/A","N/A","N/A / All Schools/Departments/Centers/Institutes","Denise Johnson","615-343-6672","denise.c.johnson@Vanderbilt.Edu",null,null,null,null,null,"*",null,null,"*",null,"US Department of Agriculture (USDA)","*","Non Federal","550x - 561x","Municipality","School of Medicine - Environmental Toxicology","POD 2","4-28-227 to 228","4-28-227 to 228 / School of Medicine - Environmental Toxicology","Jasmine Bellamy","615-343-6637","jasmine.c.bellamy@Vanderbilt.Edu"]
["Federal","465x - 474x","Environmental Protection Agency (EPA)","All Schools/Departments/Centers/Institutes","N/A","N/A","N/A / All Schools/Departments/Centers/Institutes","Gloria Mayberry","(615) 322-4613","gloria.c.mayberry@vanderbilt.edu",null,null,null,null,null,"*",null,null,"*",null,"Veteran's Administration (VA)","*","Non Federal","550x - 561x","Municipality","School of Medicine - Mass Spectometry","POD 2","4-28-229","4-28-229 / School of Medicine - Mass Spectometry","Jasmine Bellamy","615-343-6637","jasmine.c.bellamy@Vanderbilt.Edu"]
["Federal","475x - 500x","Commerce","All Schools/Departments/Centers/Institutes","N/A","N/A","N/A / All Schools/Departments/Centers/Institutes","Donna Irwin","615-343-6682","donna.irwin@vanderbilt.edu",null,null,null,null,null,"*",null,null,"*",null,null,"*","Non Federal","550x - 561x","Municipality","Arts & Sciences","N/A","4-20-xxx","4-20-xxx / Arts & Sciences","Jasmine Bellamy","615-343-6637","jasmine.c.bellamy@Vanderbilt.Edu"]
["Federal","475x - 500x","Corporation for National and Community Service (CNS)","All Schools/Departments/Centers/Institutes","N/A","N/A","N/A / All Schools/Departments/Centers/Institutes","Donna Irwin","615-343-6682","donna.irwin@vanderbilt.edu",null,null,null,null,null,"*",null,null,"*",null,null,"*","Non Federal","550x - 561x","Municipality","Engineering","N/A","4-22-xxx","4-22-xxx / Engineering","Jasmine Bellamy","615-343-6637","jasmine.c.bellamy@Vanderbilt.Edu"]
["Federal","475x - 500x","Department of Homeland Security","All Schools/Departments/Centers/Institutes","N/A","N/A","N/A / All Schools/Departments/Centers/Institutes","Donna Irwin","615-343-6682","donna.irwin@vanderbilt.edu",null,null,null,null,null,"*",null,null,"*",null,null,"*","Non Federal","550x - 561x","Municipality","Law","N/A","4-24-xxx","4-24-xxx / Law","Jasmine Bellamy","615-343-6637","jasmine.c.bellamy@Vanderbilt.Edu"]
["Federal","475x - 500x","Department of State","All Schools/Departments/Centers/Institutes","N/A","N/A","N/A / All Schools/Departments/Centers/Institutes","Donna Irwin","615-343-6682","donna.irwin@vanderbilt.edu",null,null,null,null,null,"*",null,null,"*",null,null,"*","Non Federal","550x - 561x","Municipality","Owen","N/A","4-25-xxx","4-25-xxx / Owen","Jasmine Bellamy","615-343-6637","jasmine.c.bellamy@Vanderbilt.Edu"]
["Federal","475x - 500x","Department of Transportation","All Schools/Departments/Centers/Institutes","N/A","N/A","N/A / All Schools/Departments/Centers/Institutes","Donna Irwin","615-343-6682","donna.irwin@vanderbilt.edu",null,null,null,null,null,"*",null,null,"*",null,null,"*","Non Federal","550x - 561x","Municipality","Blair","N/A","4-27-xxx","4-27-xxx / Blair","Jasmine Bellamy","615-343-6637","jasmine.c.bellamy@Vanderbilt.Edu"]
["Federal","475x - 500x","Department of Labor","All Schools/Departments/Centers/Institutes","N/A","N/A","N/A / All Schools/Departments/Centers/Institutes","Donna Irwin","615-343-6682","donna.irwin@vanderbilt.edu",null,null,null,null,null,"*",null,null,"*",null,null,"*","Non Federal","550x - 561x","Municipality","Various Center/Institutes/Departments","N/A","4-30-xxx to 4-70-xxx","4-30-xxx to 4-70-xxx / Various Center/Institutes/Departments","Jasmine Bellamy","615-343-6637","jasmine.c.bellamy@Vanderbilt.Edu"]
["Federal","475x - 500x","Housing and Urban Development","All Schools/Departments/Centers/Institutes","N/A","N/A","N/A / All Schools/Departments/Centers/Institutes","Donna Irwin","615-343-6682","donna.irwin@vanderbilt.edu",null,null,null,null,null,"*",null,null,"*",null,null,"*","Non Federal","550x - 561x","Municipality","School of Medicine - Center for Structural Biology","POD 2","4-28-230","4-28-230 / School of Medicine - Center for Structural Biology","Jasmine Bellamy","615-343-6637","jasmine.c.bellamy@Vanderbilt.Edu"]
["Federal","475x - 500x","Nuclear Regulatory Commission","All Schools/Departments/Centers/Institutes","N/A","N/A","N/A / All Schools/Departments/Centers/Institutes","Donna Irwin","615-343-6682","donna.irwin@vanderbilt.edu",null,null,null,null,null,"*",null,null,"*",null,null,"*","Non Federal","550x - 561x","Municipality","School of Medicine - Biochemistry","POD 2","4-28-250 to 253 & 256","4-28-250 to 253 & 256 / School of Medicine - Biochemistry","Jasmine Bellamy","615-343-6637","jasmine.c.bellamy@Vanderbilt.Edu"]
["Federal","475x - 500x","US Agency for International Development (USAID)","All Schools/Departments/Centers/Institutes","N/A","N/A","N/A / All Schools/Departments/Centers/Institutes","Donna Irwin","615-343-6682","donna.irwin@vanderbilt.edu",null,null,null,null,null,"*",null,null,"*",null,null,"*","Non Federal","550x - 561x","Municipality","School of Medicine - Cell & Developmental Biology","POD 2","4-28-280 to 282","4-28-280 to 282 / School of Medicine - Cell & Developmental Biology","Jasmine Bellamy","615-343-6637","jasmine.c.bellamy@Vanderbilt.Edu"]
["Federal","475x - 500x","US Department of Agriculture (USDA)","All Schools/Departments/Centers/Institutes","N/A","N/A","N/A / All Schools/Departments/Centers/Institutes","Donna Irwin","615-343-6682","donna.irwin@vanderbilt.edu",null,null,null,null,null,"*",null,null,"*",null,null,"*","Non Federal","562x - 611x","Association","School of Medicine - Vanderbilt Institute of Chemical Biology (VCB)","POD 2","4-28-209","4-28-209 / School of Medicine - Vanderbilt Institute of Chemical Biology (VCB)","Jasmine Bellamy","615-343-6637","jasmine.c.bellamy@Vanderbilt.Edu"]
["Federal","475x - 500x","Tennessee Valley Authority (TVA)","All Schools/Departments/Centers/Institutes","N/A","N/A","N/A / All Schools/Departments/Centers/Institutes","Donna Irwin","615-343-6682","donna.irwin@vanderbilt.edu",null,null,null,null,null,"*",null,null,"*",null,null,"*","Non Federal","562x - 611x","Association","School of Medicine - Center for Stem Cell Biology","POD 2","4-28-212 & 275","4-28-212 & 275 / School of Medicine - Center for Stem Cell Biology","Jasmine Bellamy","615-343-6637","jasmine.c.bellamy@Vanderbilt.Edu"]
["Federal","475x - 500x","Department of Justice","All Schools/Departments/Centers/Institutes","N/A","N/A","N/A / All Schools/Departments/Centers/Institutes","Gloria Mayberry","(615) 322-4613","gloria.c.mayberry@vanderbilt.edu",null,null,null,null,null,"*",null,null,"*",null,null,"*","Non Federal","562x - 611x","Association","School of Medicine - Environmental Toxicology","POD 2","4-28-227 to 228","4-28-227 to 228 / School of Medicine - Environmental Toxicology","Jasmine Bellamy","615-343-6637","jasmine.c.bellamy@Vanderbilt.Edu"]
["Non Federal","501x - 549x","State of Tennessee and Other States","Arts & Sciences","N/A","4-20-xxx","4-20-xxx / Arts & Sciences","Jasmine Bellamy","615-343-6637","jasmine.c.bellamy@Vanderbilt.Edu",null,null,null,null,null,"*",null,null,"*",null,null,"*","Non Federal","562x - 611x","Association","School of Medicine - Mass Spectometry","POD 2","4-28-229","4-28-229 / School of Medicine - Mass Spectometry","Jasmine Bellamy","615-343-6637","jasmine.c.bellamy@Vanderbilt.Edu"]
["Non Federal","501x - 549x","State of Tennessee and Other States","Engineering","N/A","4-22-xxx","4-22-xxx / Engineering","Jasmine Bellamy","615-343-6637","jasmine.c.bellamy@Vanderbilt.Edu",null,null,null,null,null,"*",null,null,"*",null,null,"*","Non Federal","562x - 611x","Association","School of Medicine - Center for Structural Biology","POD 2","4-28-230","4-28-230 / School of Medicine - Center for Structural Biology","Jasmine Bellamy","615-343-6637","jasmine.c.bellamy@Vanderbilt.Edu"]
["Non Federal","501x - 549x","State of Tennessee and Other States","Law","N/A","4-24-xxx","4-24-xxx / Law","Jasmine Bellamy","615-343-6637","jasmine.c.bellamy@Vanderbilt.Edu",null,null,null,null,null,"*",null,null,"*",null,null,"*","Non Federal","562x - 611x","Association","Arts & Sciences","N/A","4-20-xxx","4-20-xxx / Arts & Sciences","Jasmine Bellamy","615-343-6637","jasmine.c.bellamy@Vanderbilt.Edu"]
["Non Federal","501x - 549x","State of Tennessee and Other States","Owen","N/A","4-25-xxx","4-25-xxx / Owen","Jasmine Bellamy","615-343-6637","jasmine.c.bellamy@Vanderbilt.Edu",null,null,null,null,null,"*",null,null,"*",null,null,"*","Non Federal","562x - 611x","Association","Engineering","N/A","4-22-xxx","4-22-xxx / Engineering","Jasmine Bellamy","615-343-6637","jasmine.c.bellamy@Vanderbilt.Edu"]
["Non Federal","501x - 549x","State of Tennessee and Other States","Blair","N/A","4-27-xxx","4-27-xxx / Blair","Jasmine Bellamy","615-343-6637","jasmine.c.bellamy@Vanderbilt.Edu",null,null,null,null,null,"*",null,null,"*",null,null,"*","Non Federal","562x - 611x","Association","Law","N/A","4-24-xxx","4-24-xxx / Law","Jasmine Bellamy","615-343-6637","jasmine.c.bellamy@Vanderbilt.Edu"]
["Non Federal","501x - 549x","State of Tennessee and Other States","School of Medicine - Vanderbilt Institute of Chemical Biology (VCB)","POD 2","4-28-209","4-28-209 / School of Medicine - Vanderbilt Institute of Chemical Biology (VCB)","Jasmine Bellamy","615-343-6637","jasmine.c.bellamy@Vanderbilt.Edu",null,null,null,null,null,"*",null,null,"*",null,null,"*","Non Federal","562x - 611x","Association","Owen","N/A","4-25-xxx","4-25-xxx / Owen","Jasmine Bellamy","615-343-6637","jasmine.c.bellamy@Vanderbilt.Edu"]
["Non Federal","501x - 549x","State of Tennessee and Other States","School of Medicine - Center for Stem Cell Biology","POD 2","4-28-212 & 275","4-28-212 & 275 / School of Medicine - Center for Stem Cell Biology","Jasmine Bellamy","615-343-6637","jasmine.c.bellamy@Vanderbilt.Edu",null,null,null,null,null,"*",null,null,"*",null,null,"*","Non Federal","562x - 611x","Association","Blair","N/A","4-27-xxx","4-27-xxx / Blair","Jasmine Bellamy","615-343-6637","jasmine.c.bellamy@Vanderbilt.Edu"]
["Non Federal","501x - 549x","State of Tennessee and Other States","School of Medicine - Environmental Toxicology","POD 2","4-28-227 to 228","4-28-227 to 228 / School of Medicine - Environmental Toxicology","Jasmine Bellamy","615-343-6637","jasmine.c.bellamy@Vanderbilt.Edu",null,null,null,null,null,"*",null,null,"*",null,null,"*","Non Federal","562x - 611x","Association","Various Center/Institutes/Departments","N/A","4-30-xxx to 4-70-xxx","4-30-xxx to 4-70-xxx / Various Center/Institutes/Departments","Jasmine Bellamy","615-343-6637","jasmine.c.bellamy@Vanderbilt.Edu"]
["Non Federal","501x - 549x","State of Tennessee and Other States","School of Medicine - Mass Spectometry","POD 2","4-28-229","4-28-229 / School of Medicine - Mass Spectometry","Jasmine Bellamy","615-343-6637","jasmine.c.bellamy@Vanderbilt.Edu",null,null,null,null,null,"*",null,null,"*",null,null,"*","Non Federal","562x - 611x","Association","School of Medicine - Biochemistry","POD 2","4-28-250 to 253 & 256","4-28-250 to 253 & 256 / School of Medicine - Biochemistry","Jasmine Bellamy","615-343-6637","jasmine.c.bellamy@Vanderbilt.Edu"]
["Non Federal","501x - 549x","State of Tennessee and Other States","School of Medicine - Center for Structural Biology","POD 2","4-28-230","4-28-230 / School of Medicine - Center for Structural Biology","Jasmine Bellamy","615-343-6637","jasmine.c.bellamy@Vanderbilt.Edu",null,null,null,null,null,"*",null,null,"*",null,null,"*","Non Federal","562x - 611x","Association","School of Medicine - Cell & Developmental Biology","POD 2","4-28-280 to 282","4-28-280 to 282 / School of Medicine - Cell & Developmental Biology","Jasmine Bellamy","615-343-6637","jasmine.c.bellamy@Vanderbilt.Edu"]
["Non Federal","501x - 549x","State of Tennessee and Other States","School of Medicine - Biochemistry","POD 2","4-28-250 to 253 & 256","4-28-250 to 253 & 256 / School of Medicine - Biochemistry","Jasmine Bellamy","615-343-6637","jasmine.c.bellamy@Vanderbilt.Edu",null,null,null,null,null,"*",null,null,"*",null,null,"*","Non Federal","612x - 695x","Foundation","School of Medicine - Vanderbilt Institute of Chemical Biology (VCB)","POD 2","4-28-209","4-28-209 / School of Medicine - Vanderbilt Institute of Chemical Biology (VCB)","Jasmine Bellamy","615-343-6637","jasmine.c.bellamy@Vanderbilt.Edu"]
["Non Federal","501x - 549x","State of Tennessee and Other States","School of Medicine - Cell & Developmental Biology","POD 2","4-28-280 to 282","4-28-280 to 282 / School of Medicine - Cell & Developmental Biology","Jasmine Bellamy","615-343-6637","jasmine.c.bellamy@Vanderbilt.Edu",null,null,null,null,null,"*",null,null,"*",null,null,"*","Non Federal","612x - 695x","Foundation","School of Medicine - Center for Stem Cell Biology","POD 2","4-28-212 & 275","4-28-212 & 275 / School of Medicine - Center for Stem Cell Biology","Jasmine Bellamy","615-343-6637","jasmine.c.bellamy@Vanderbilt.Edu"]
["Non Federal","501x - 549x","State of Tennessee and Other States","Various Center/Institutes/Departments","N/A","4-30-xxx to 4-70-xxx","4-30-xxx to 4-70-xxx / Various Center/Institutes/Departments","Jasmine Bellamy","615-343-6637","jasmine.c.bellamy@Vanderbilt.Edu",null,null,null,null,null,"*",null,null,"*",null,null,"*","Non Federal","612x - 695x","Foundation","School of Medicine - Environmental Toxicology","POD 2","4-28-227 to 228","4-28-227 to 228 / School of Medicine - Environmental Toxicology","Jasmine Bellamy","615-343-6637","jasmine.c.bellamy@Vanderbilt.Edu"]
["Non Federal","501x - 549x","State of Tennessee and Other States","School of Medicine - Center for Human Genetics","POD 3","4-28-226 & 274","4-28-226 & 274 / School of Medicine - Center for Human Genetics","Chrystie Anderson","615-322-2274","chrystie.anderson@vanderbilt.edu",null,null,null,null,null,"*",null,null,"*",null,null,"*","Non Federal","612x - 695x","Foundation","School of Medicine - Mass Spectometry","POD 2","4-28-229","4-28-229 / School of Medicine - Mass Spectometry","Jasmine Bellamy","615-343-6637","jasmine.c.bellamy@Vanderbilt.Edu"]
["Non Federal","501x - 549x","State of Tennessee and Other States","Divinity","N/A","4-23-xxx","4-23-xxx / Divinity","Chrystie Anderson","615-322-2274","chrystie.anderson@vanderbilt.edu",null,null,null,null,null,"*",null,null,"*",null,null,"*","Non Federal","612x - 695x","Foundation","School of Medicine - Center for Structural Biology","POD 2","4-28-230","4-28-230 / School of Medicine - Center for Structural Biology","Jasmine Bellamy","615-343-6637","jasmine.c.bellamy@Vanderbilt.Edu"]
["Non Federal","501x - 549x","State of Tennessee and Other States","Peabody","N/A","4-26-xxx","4-26-xxx / Peabody","Chrystie Anderson","615-322-2274","chrystie.anderson@vanderbilt.edu",null,null,null,null,null,"*",null,null,"*",null,null,"*","Non Federal","612x - 695x","Foundation","School of Medicine - Biochemistry","POD 2","4-28-250 to 253 & 256","4-28-250 to 253 & 256 / School of Medicine - Biochemistry","Jasmine Bellamy","615-343-6637","jasmine.c.bellamy@Vanderbilt.Edu"]
["Non Federal","501x - 549x","State of Tennessee and Other States","School of Medicine - Graduate Programs (BRET)","N/A","4-28-17x- & 14x","4-28-17x- & 14x / School of Medicine - Graduate Programs (BRET)","Chrystie Anderson","615-322-2274","chrystie.anderson@vanderbilt.edu",null,null,null,null,null,"*",null,null,"*",null,null,"*","Non Federal","612x - 695x","Foundation","Arts & Sciences","N/A","4-20-xxx","4-20-xxx / Arts & Sciences","Jasmine Bellamy","615-343-6637","jasmine.c.bellamy@Vanderbilt.Edu"]
["Non Federal","501x - 549x","State of Tennessee and Other States","School of Medicine - Vanderbilt Brain Institute","N/A","4-28-217","4-28-217 / School of Medicine - Vanderbilt Brain Institute","Chrystie Anderson","615-322-2274","chrystie.anderson@vanderbilt.edu",null,null,null,null,null,"*",null,null,"*",null,null,"*","Non Federal","612x - 695x","Foundation","Engineering","N/A","4-22-xxx","4-22-xxx / Engineering","Jasmine Bellamy","615-343-6637","jasmine.c.bellamy@Vanderbilt.Edu"]
["Non Federal","501x - 549x","State of Tennessee and Other States","School of Medicine - Cancer Biology","N/A","4-28-286 to 288","4-28-286 to 288 / School of Medicine - Cancer Biology","Chrystie Anderson","615-322-2274","chrystie.anderson@vanderbilt.edu",null,null,null,null,null,"*",null,null,"*",null,null,"*","Non Federal","612x - 695x","Foundation","Law","N/A","4-24-xxx","4-24-xxx / Law","Jasmine Bellamy","615-343-6637","jasmine.c.bellamy@Vanderbilt.Edu"]
["Non Federal","501x - 549x","State of Tennessee and Other States","School of Medicine - Center for Molecular Neuroscience","POD 3","4-28-239","4-28-239 / School of Medicine - Center for Molecular Neuroscience","Chrystie Anderson","615-322-2274","chrystie.anderson@vanderbilt.edu",null,null,null,null,null,"*",null,null,"*",null,null,"*","Non Federal","612x - 695x","Foundation","Owen","N/A","4-25-xxx","4-25-xxx / Owen","Jasmine Bellamy","615-343-6637","jasmine.c.bellamy@Vanderbilt.Edu"]
["Non Federal","501x - 549x","State of Tennessee and Other States","School of Medicine -Molecular Physiology & Biophysics","POD 3","4-28-270 to 276 (not 274)","4-28-270 to 276 (not 274) / School of Medicine -Molecular Physiology & Biophysics","Chrystie Anderson","615-322-2274","chrystie.anderson@vanderbilt.edu",null,null,null,null,null,"*",null,null,"*",null,null,"*","Non Federal","612x - 695x","Foundation","Blair","N/A","4-27-xxx","4-27-xxx / Blair","Jasmine Bellamy","615-343-6637","jasmine.c.bellamy@Vanderbilt.Edu"]
["Non Federal","501x - 549x","State of Tennessee and Other States","School of Medicine - Pharmacology","POD 3","4-28-290 & 294 & 295","4-28-290 & 294 & 295 / School of Medicine - Pharmacology","Chrystie Anderson","615-322-2274","chrystie.anderson@vanderbilt.edu",null,null,null,null,null,"*",null,null,"*",null,null,"*","Non Federal","612x - 695x","Foundation","Various Center/Institutes/Departments","N/A","4-30-xxx to 4-70-xxx","4-30-xxx to 4-70-xxx / Various Center/Institutes/Departments","Jasmine Bellamy","615-343-6637","jasmine.c.bellamy@Vanderbilt.Edu"]
["Non Federal","501x - 549x","State of Tennessee and Other States","School of Medicine - Drug Discovery (within Pharmacology)","POD 3","4-28-297","4-28-297 / School of Medicine - Drug Discovery (within Pharmacology)","Chrystie Anderson","615-322-2274","chrystie.anderson@vanderbilt.edu",null,null,null,null,null,"*",null,null,"*",null,null,"*","Non Federal","612x - 695x","Foundation","School of Medicine - Cell & Developmental Biology","POD 2","4-28-280 to 282","4-28-280 to 282 / School of Medicine - Cell & Developmental Biology","Jasmine Bellamy","615-343-6637","jasmine.c.bellamy@Vanderbilt.Edu"]
["Non Federal","550x - 561x","Municipality","School of Medicine - Vanderbilt Institute of Chemical Biology (VCB)","POD 2","4-28-209","4-28-209 / School of Medicine - Vanderbilt Institute of Chemical Biology (VCB)","Jasmine Bellamy","615-343-6637","jasmine.c.bellamy@Vanderbilt.Edu",null,null,null,null,null,"*",null,null,"*",null,null,"*","Non Federal","696x - 770x","Corporation","School of Medicine - Vanderbilt Institute of Chemical Biology (VCB)","POD 2","4-28-209","4-28-209 / School of Medicine - Vanderbilt Institute of Chemical Biology (VCB)","Jasmine Bellamy","615-343-6637","jasmine.c.bellamy@Vanderbilt.Edu"]
["Non Federal","550x - 561x","Municipality","School of Medicine - Center for Stem Cell Biology","POD 2","4-28-212 & 275","4-28-212 & 275 / School of Medicine - Center for Stem Cell Biology","Jasmine Bellamy","615-343-6637","jasmine.c.bellamy@Vanderbilt.Edu",null,null,null,null,null,"*",null,null,"*",null,null,"*","Non Federal","696x - 770x","Corporation","School of Medicine - Center for Stem Cell Biology","POD 2","4-28-212 & 275","4-28-212 & 275 / School of Medicine - Center for Stem Cell Biology","Jasmine Bellamy","615-343-6637","jasmine.c.bellamy@Vanderbilt.Edu"]
["Non Federal","550x - 561x","Municipality","School of Medicine - Environmental Toxicology","POD 2","4-28-227 to 228","4-28-227 to 228 / School of Medicine - Environmental Toxicology","Jasmine Bellamy","615-343-6637","jasmine.c.bellamy@Vanderbilt.Edu",null,null,null,null,null,"*",null,null,"*",null,null,"*","Non Federal","696x - 770x","Corporation","School of Medicine - Environmental Toxicology","POD 2","4-28-227 to 228","4-28-227 to 228 / School of Medicine - Environmental Toxicology","Jasmine Bellamy","615-343-6637","jasmine.c.bellamy@Vanderbilt.Edu"]
["Non Federal","550x - 561x","Municipality","School of Medicine - Mass Spectometry","POD 2","4-28-229","4-28-229 / School of Medicine - Mass Spectometry","Jasmine Bellamy","615-343-6637","jasmine.c.bellamy@Vanderbilt.Edu",null,null,null,null,null,"*",null,null,"*",null,null,"*","Non Federal","696x - 770x","Corporation","School of Medicine - Mass Spectometry","POD 2","4-28-229","4-28-229 / School of Medicine - Mass Spectometry","Jasmine Bellamy","615-343-6637","jasmine.c.bellamy@Vanderbilt.Edu"]
["Non Federal","550x - 561x","Municipality","Arts & Sciences","N/A","4-20-xxx","4-20-xxx / Arts & Sciences","Jasmine Bellamy","615-343-6637","jasmine.c.bellamy@Vanderbilt.Edu",null,null,null,null,null,"*",null,null,"*",null,null,"*","Non Federal","696x - 770x","Corporation","School of Medicine - Center for Structural Biology","POD 2","4-28-230","4-28-230 / School of Medicine - Center for Structural Biology","Jasmine Bellamy","615-343-6637","jasmine.c.bellamy@Vanderbilt.Edu"]
["Non Federal","550x - 561x","Municipality","Engineering","N/A","4-22-xxx","4-22-xxx / Engineering","Jasmine Bellamy","615-343-6637","jasmine.c.bellamy@Vanderbilt.Edu",null,null,null,null,null,"*",null,null,"*",null,null,"*","Non Federal","696x - 770x","Corporation","School of Medicine - Biochemistry","POD 2","4-28-250 to 253 & 256","4-28-250 to 253 & 256 / School of Medicine - Biochemistry","Jasmine Bellamy","615-343-6637","jasmine.c.bellamy@Vanderbilt.Edu"]
["Non Federal","550x - 561x","Municipality","Law","N/A","4-24-xxx","4-24-xxx / Law","Jasmine Bellamy","615-343-6637","jasmine.c.bellamy@Vanderbilt.Edu",null,null,null,null,null,"*",null,null,"*",null,null,"*","Non Federal","696x - 770x","Corporation","School of Medicine - Cell & Developmental Biology","POD 2","4-28-280 to 282","4-28-280 to 282 / School of Medicine - Cell & Developmental Biology","Jasmine Bellamy","615-343-6637","jasmine.c.bellamy@Vanderbilt.Edu"]
["Non Federal","550x - 561x","Municipality","Owen","N/A","4-25-xxx","4-25-xxx / Owen","Jasmine Bellamy","615-343-6637","jasmine.c.bellamy@Vanderbilt.Edu",null,null,null,null,null,"*",null,null,"*",null,null,"*","Non Federal","696x - 770x","Corporation","Arts & Sciences","N/A","4-20-xxx","4-20-xxx / Arts & Sciences","Jasmine Bellamy","615-343-6637","jasmine.c.bellamy@Vanderbilt.Edu"]
["Non Federal","550x - 561x","Municipality","Blair","N/A","4-27-xxx","4-27-xxx / Blair","Jasmine Bellamy","615-343-6637","jasmine.c.bellamy@Vanderbilt.Edu",null,null,null,null,null,"*",null,null,"*",null,null,"*","Non Federal","696x - 770x","Corporation","Engineering","N/A","4-22-xxx","4-22-xxx / Engineering","Jasmine Bellamy","615-343-6637","jasmine.c.bellamy@Vanderbilt.Edu"]
["Non Federal","550x - 561x","Municipality","Various Center/Institutes/Departments","N/A","4-30-xxx to 4-70-xxx","4-30-xxx to 4-70-xxx / Various Center/Institutes/Departments","Jasmine Bellamy","615-343-6637","jasmine.c.bellamy@Vanderbilt.Edu",null,null,null,null,null,"*",null,null,"*",null,null,"*","Non Federal","696x - 770x","Corporation","Law","N/A","4-24-xxx","4-24-xxx / Law","Jasmine Bellamy","615-343-6637","jasmine.c.bellamy@Vanderbilt.Edu"]
["Non Federal","550x - 561x","Municipality","School of Medicine - Center for Structural Biology","POD 2","4-28-230","4-28-230 / School of Medicine - Center for Structural Biology","Jasmine Bellamy","615-343-6637","jasmine.c.bellamy@Vanderbilt.Edu",null,null,null,null,null,"*",null,null,"*",null,null,"*","Non Federal","696x - 770x","Corporation","Owen","N/A","4-25-xxx","4-25-xxx / Owen","Jasmine Bellamy","615-343-6637","jasmine.c.bellamy@Vanderbilt.Edu"]
["Non Federal","550x - 561x","Municipality","School of Medicine - Biochemistry","POD 2","4-28-250 to 253 & 256","4-28-250 to 253 & 256 / School of Medicine - Biochemistry","Jasmine Bellamy","615-343-6637","jasmine.c.bellamy@Vanderbilt.Edu",null,null,null,null,null,"*",null,null,"*",null,null,"*","Non Federal","696x - 770x","Corporation","Blair","N/A","4-27-xxx","4-27-xxx / Blair","Jasmine Bellamy","615-343-6637","jasmine.c.bellamy@Vanderbilt.Edu"]
["Non Federal","550x - 561x","Municipality","School of Medicine - Cell & Developmental Biology","POD 2","4-28-280 to 282","4-28-280 to 282 / School of Medicine - Cell & Developmental Biology","Jasmine Bellamy","615-343-6637","jasmine.c.bellamy@Vanderbilt.Edu",null,null,null,null,null,"*",null,null,"*",null,null,"*","Non Federal","696x - 770x","Corporation","Various Center/Institutes/Departments","N/A","4-30-xxx to 4-70-xxx","4-30-xxx to 4-70-xxx / Various Center/Institutes/Departments","Jasmine Bellamy","615-343-6637","jasmine.c.bellamy@Vanderbilt.Edu"]
["Non Federal","550x - 561x","Municipality","School of Medicine - Center for Neuroscience Drug Discovery","POD 3","4-28-208","4-28-208 / School of Medicine - Center for Neuroscience Drug Discovery","Chrystie Anderson","615-322-2274","chrystie.anderson@vanderbilt.edu",null,null,null,null,null,"*",null,null,"*",null,null,"*","Non Federal","771x - 780x","International","School of Medicine - Vanderbilt Institute of Chemical Biology (VCB)","POD 2","4-28-209","4-28-209 / School of Medicine - Vanderbilt Institute of Chemical Biology (VCB)","Jasmine Bellamy","615-343-6637","jasmine.c.bellamy@Vanderbilt.Edu"]
["Non Federal","550x - 561x","Municipality","School of Medicine - Center for Human Genetics","POD 3","4-28-226 & 274","4-28-226 & 274 / School of Medicine - Center for Human Genetics","Chrystie Anderson","615-322-2274","chrystie.anderson@vanderbilt.edu",null,null,null,null,null,"*",null,null,"*",null,null,"*","Non Federal","771x - 780x","International","School of Medicine - Center for Stem Cell Biology","POD 2","4-28-212 & 275","4-28-212 & 275 / School of Medicine - Center for Stem Cell Biology","Jasmine Bellamy","615-343-6637","jasmine.c.bellamy@Vanderbilt.Edu"]
["Non Federal","550x - 561x","Municipality","Divinity","N/A","4-23-xxx","4-23-xxx / Divinity","Chrystie Anderson","615-322-2274","chrystie.anderson@vanderbilt.edu",null,null,null,null,null,"*",null,null,"*",null,null,"*","Non Federal","771x - 780x","International","School of Medicine - Environmental Toxicology","POD 2","4-28-227 to 228","4-28-227 to 228 / School of Medicine - Environmental Toxicology","Jasmine Bellamy","615-343-6637","jasmine.c.bellamy@Vanderbilt.Edu"]
["Non Federal","550x - 561x","Municipality","Peabody","N/A","4-26-xxx","4-26-xxx / Peabody","Chrystie Anderson","615-322-2274","chrystie.anderson@vanderbilt.edu",null,null,null,null,null,"*",null,null,"*",null,null,"*","Non Federal","771x - 780x","International","School of Medicine - Mass Spectometry","POD 2","4-28-229","4-28-229 / School of Medicine - Mass Spectometry","Jasmine Bellamy","615-343-6637","jasmine.c.bellamy@Vanderbilt.Edu"]
["Non Federal","550x - 561x","Municipality","School of Medicine - Graduate Programs (BRET)","N/A","4-28-17x- & 14x","4-28-17x- & 14x / School of Medicine - Graduate Programs (BRET)","Chrystie Anderson","615-322-2274","chrystie.anderson@vanderbilt.edu",null,null,null,null,null,"*",null,null,"*",null,null,"*","Non Federal","771x - 780x","International","School of Medicine - Center for Structural Biology","POD 2","4-28-230","4-28-230 / School of Medicine - Center for Structural Biology","Jasmine Bellamy","615-343-6637","jasmine.c.bellamy@Vanderbilt.Edu"]
["Non Federal","550x - 561x","Municipality","School of Medicine - Vanderbilt Brain Institute","N/A","4-28-217","4-28-217 / School of Medicine - Vanderbilt Brain Institute","Chrystie Anderson","615-322-2274","chrystie.anderson@vanderbilt.edu",null,null,null,null,null,"*",null,null,"*",null,null,"*","Non Federal","771x - 780x","International","School of Medicine - Biochemistry","POD 2","4-28-250 to 253 & 256","4-28-250 to 253 & 256 / School of Medicine - Biochemistry","Jasmine Bellamy","615-343-6637","jasmine.c.bellamy@Vanderbilt.Edu"]
["Non Federal","550x - 561x","Municipality","School of Medicine - Cancer Biology","N/A","4-28-286 to 288","4-28-286 to 288 / School of Medicine - Cancer Biology","Chrystie Anderson","615-322-2274","chrystie.anderson@vanderbilt.edu",null,null,null,null,null,"*",null,null,"*",null,null,"*","Non Federal","771x - 780x","International","School of Medicine - Cell & Developmental Biology","POD 2","4-28-280 to 282","4-28-280 to 282 / School of Medicine - Cell & Developmental Biology","Jasmine Bellamy","615-343-6637","jasmine.c.bellamy@Vanderbilt.Edu"]
["Non Federal","550x - 561x","Municipality","School of Medicine - Center for Molecular Neuroscience","POD 3","4-28-239","4-28-239 / School of Medicine - Center for Molecular Neuroscience","Chrystie Anderson","615-322-2274","chrystie.anderson@vanderbilt.edu",null,null,null,null,null,"*",null,null,"*",null,null,"*","Non Federal","771x - 780x","International","Arts & Sciences","N/A","4-20-xxx","4-20-xxx / Arts & Sciences","Jasmine Bellamy","615-343-6637","jasmine.c.bellamy@Vanderbilt.Edu"]
["Non Federal","550x - 561x","Municipality","School of Medicine -Molecular Physiology & Biophysics","POD 3","4-28-270 to 276 (not 274)","4-28-270 to 276 (not 274) / School of Medicine -Molecular Physiology & Biophysics","Chrystie Anderson","615-322-2274","chrystie.anderson@vanderbilt.edu",null,null,null,null,null,"*",null,null,"*",null,null,"*","Non Federal","771x - 780x","International","Engineering","N/A","4-22-xxx","4-22-xxx / Engineering","Jasmine Bellamy","615-343-6637","jasmine.c.bellamy@Vanderbilt.Edu"]
["Non Federal","550x - 561x","Municipality","School of Medicine - Pharmacology","POD 3","4-28-290 & 294 & 295","4-28-290 & 294 & 295 / School of Medicine - Pharmacology","Chrystie Anderson","615-322-2274","chrystie.anderson@vanderbilt.edu",null,null,null,null,null,"*",null,null,"*",null,null,"*","Non Federal","771x - 780x","International","Law","N/A","4-24-xxx","4-24-xxx / Law","Jasmine Bellamy","615-343-6637","jasmine.c.bellamy@Vanderbilt.Edu"]
["Non Federal","550x - 561x","Municipality","School of Medicine - Drug Discovery (within Pharmacology)","POD 3","4-28-297","4-28-297 / School of Medicine - Drug Discovery (within Pharmacology)","Chrystie Anderson","615-322-2274","chrystie.anderson@vanderbilt.edu",null,null,null,null,null,"*",null,null,"*",null,null,"*","Non Federal","771x - 780x","International","Owen","N/A","4-25-xxx","4-25-xxx / Owen","Jasmine Bellamy","615-343-6637","jasmine.c.bellamy@Vanderbilt.Edu"]
["Non Federal","562x - 611x","Association","School of Medicine - Vanderbilt Institute of Chemical Biology (VCB)","POD 2","4-28-209","4-28-209 / School of Medicine - Vanderbilt Institute of Chemical Biology (VCB)","Jasmine Bellamy","615-343-6637","jasmine.c.bellamy@Vanderbilt.Edu",null,null,null,null,null,"*",null,null,"*",null,null,"*","Non Federal","771x - 780x","International","Blair","N/A","4-27-xxx","4-27-xxx / Blair","Jasmine Bellamy","615-343-6637","jasmine.c.bellamy@Vanderbilt.Edu"]
["Non Federal","562x - 611x","Association","School of Medicine - Center for Stem Cell Biology","POD 2","4-28-212 & 275","4-28-212 & 275 / School of Medicine - Center for Stem Cell Biology","Jasmine Bellamy","615-343-6637","jasmine.c.bellamy@Vanderbilt.Edu",null,null,null,null,null,"*",null,null,"*",null,null,"*","Non Federal","771x - 780x","International","Various Center/Institutes/Departments","N/A","4-30-xxx to 4-70-xxx","4-30-xxx to 4-70-xxx / Various Center/Institutes/Departments","Jasmine Bellamy","615-343-6637","jasmine.c.bellamy@Vanderbilt.Edu"]
["Non Federal","562x - 611x","Association","School of Medicine - Environmental Toxicology","POD 2","4-28-227 to 228","4-28-227 to 228 / School of Medicine - Environmental Toxicology","Jasmine Bellamy","615-343-6637","jasmine.c.bellamy@Vanderbilt.Edu",null,null,null,null,null,"*",null,null,"*",null,null,"*","Non Federal","921x - 959x","University","School of Medicine - Vanderbilt Institute of Chemical Biology (VCB)","POD 2","4-28-209","4-28-209 / School of Medicine - Vanderbilt Institute of Chemical Biology (VCB)","Jasmine Bellamy","615-343-6637","jasmine.c.bellamy@Vanderbilt.Edu"]
["Non Federal","562x - 611x","Association","School of Medicine - Mass Spectometry","POD 2","4-28-229","4-28-229 / School of Medicine - Mass Spectometry","Jasmine Bellamy","615-343-6637","jasmine.c.bellamy@Vanderbilt.Edu",null,null,null,null,null,"*",null,null,"*",null,null,"*","Non Federal","921x - 959x","University","School of Medicine - Center for Stem Cell Biology","POD 2","4-28-212 & 275","4-28-212 & 275 / School of Medicine - Center for Stem Cell Biology","Jasmine Bellamy","615-343-6637","jasmine.c.bellamy@Vanderbilt.Edu"]
["Non Federal","562x - 611x","Association","School of Medicine - Center for Structural Biology","POD 2","4-28-230","4-28-230 / School of Medicine - Center for Structural Biology","Jasmine Bellamy","615-343-6637","jasmine.c.bellamy@Vanderbilt.Edu",null,null,null,null,null,null,null,null,null,null,null,null,"Non Federal","921x - 959x","University","School of Medicine - Environmental Toxicology","POD 2","4-28-227 to 228","4-28-227 to 228 / School of Medicine - Environmental Toxicology","Jasmine Bellamy","615-343-6637","jasmine.c.bellamy@Vanderbilt.Edu"]
["Non Federal","562x - 611x","Association","Arts & Sciences","N/A","4-20-xxx","4-20-xxx / Arts & Sciences","Jasmine Bellamy","615-343-6637","jasmine.c.bellamy@Vanderbilt.Edu",null,null,null,null,null,null,null,null,null,null,null,null,"Non Federal","921x - 959x","University","School of Medicine - Mass Spectometry","POD 2","4-28-229","4-28-229 / School of Medicine - Mass Spectometry","Jasmine Bellamy","615-343-6637","jasmine.c.bellamy@Vanderbilt.Edu"]
["Non Federal","562x - 611x","Association","Engineering","N/A","4-22-xxx","4-22-xxx / Engineering","Jasmine Bellamy","615-343-6637","jasmine.c.bellamy@Vanderbilt.Edu",null,null,null,null,null,null,null,null,null,null,null,null,"Non Federal","921x - 959x","University","School of Medicine - Center for Structural Biology","POD 2","4-28-230","4-28-230 / School of Medicine - Center for Structural Biology","Jasmine Bellamy","615-343-6637","jasmine.c.bellamy@Vanderbilt.Edu"]
["Non Federal","562x - 611x","Association","Law","N/A","4-24-xxx","4-24-xxx / Law","Jasmine Bellamy","615-343-6637","jasmine.c.bellamy@Vanderbilt.Edu",null,null,null,null,null,null,null,null,null,null,null,null,"Non Federal","921x - 959x","University","School of Medicine - Biochemistry","POD 2","4-28-250 to 253 & 256","4-28-250 to 253 & 256 / School of Medicine - Biochemistry","Jasmine Bellamy","615-343-6637","jasmine.c.bellamy@Vanderbilt.Edu"]
["Non Federal","562x - 611x","Association","Owen","N/A","4-25-xxx","4-25-xxx / Owen","Jasmine Bellamy","615-343-6637","jasmine.c.bellamy@Vanderbilt.Edu",null,null,null,null,null,null,null,null,null,null,null,null,"Non Federal","921x - 959x","University","School of Medicine - Cell & Developmental Biology","POD 2","4-28-280 to 282","4-28-280 to 282 / School of Medicine - Cell & Developmental Biology","Jasmine Bellamy","615-343-6637","jasmine.c.bellamy@Vanderbilt.Edu"]
["Non Federal","562x - 611x","Association","Blair","N/A","4-27-xxx","4-27-xxx / Blair","Jasmine Bellamy","615-343-6637","jasmine.c.bellamy@Vanderbilt.Edu",null,null,null,null,null,null,null,null,null,null,null,null,"Non Federal","921x - 959x","University","Arts & Sciences","N/A","4-20-xxx","4-20-xxx / Arts & Sciences","Jasmine Bellamy","615-343-6637","jasmine.c.bellamy@Vanderbilt.Edu"]
["Non Federal","562x - 611x","Association","Various Center/Institutes/Departments","N/A","4-30-xxx to 4-70-xxx","4-30-xxx to 4-70-xxx / Various Center/Institutes/Departments","Jasmine Bellamy","615-343-6637","jasmine.c.bellamy@Vanderbilt.Edu",null,null,null,null,null,null,null,null,null,null,null,null,"Non Federal","921x - 959x","University","Engineering","N/A","4-22-xxx","4-22-xxx / Engineering","Jasmine Bellamy","615-343-6637","jasmine.c.bellamy@Vanderbilt.Edu"]
["Non Federal","562x - 611x","Association","School of Medicine - Biochemistry","POD 2","4-28-250 to 253 & 256","4-28-250 to 253 & 256 / School of Medicine - Biochemistry","Jasmine Bellamy","615-343-6637","jasmine.c.bellamy@Vanderbilt.Edu",null,null,null,null,null,null,null,null,null,null,null,null,"Non Federal","921x - 959x","University","Law","N/A","4-24-xxx","4-24-xxx / Law","Jasmine Bellamy","615-343-6637","jasmine.c.bellamy@Vanderbilt.Edu"]
["Non Federal","562x - 611x","Association","School of Medicine - Cell & Developmental Biology","POD 2","4-28-280 to 282","4-28-280 to 282 / School of Medicine - Cell & Developmental Biology","Jasmine Bellamy","615-343-6637","jasmine.c.bellamy@Vanderbilt.Edu",null,null,null,null,null,null,null,null,null,null,null,null,"Non Federal","921x - 959x","University","Owen","N/A","4-25-xxx","4-25-xxx / Owen","Jasmine Bellamy","615-343-6637","jasmine.c.bellamy@Vanderbilt.Edu"]
["Non Federal","562x - 611x","Association","School of Medicine - Center for Human Genetics","POD 3","4-28-226 & 274","4-28-226 & 274 / School of Medicine - Center for Human Genetics","Chrystie Anderson","615-322-2274","chrystie.anderson@vanderbilt.edu",null,null,null,null,null,null,null,null,null,null,null,null,"Non Federal","921x - 959x","University","Blair","N/A","4-27-xxx","4-27-xxx / Blair","Jasmine Bellamy","615-343-6637","jasmine.c.bellamy@Vanderbilt.Edu"]
["Non Federal","562x - 611x","Association","School of Medicine - Center for Molecular Neuroscience","POD 3","4-28-239","4-28-239 / School of Medicine - Center for Molecular Neuroscience","Chrystie Anderson","615-322-2274","chrystie.anderson@vanderbilt.edu",null,null,null,null,null,null,null,null,null,null,null,null,"Non Federal","921x - 959x","University","Various Center/Institutes/Departments","N/A","4-30-xxx to 4-70-xxx","4-30-xxx to 4-70-xxx / Various Center/Institutes/Departments","Jasmine Bellamy","615-343-6637","jasmine.c.bellamy@Vanderbilt.Edu"]
["Non Federal","562x - 611x","Association","Divinity","N/A","4-23-xxx","4-23-xxx / Divinity","Chrystie Anderson","615-322-2274","chrystie.anderson@vanderbilt.edu"]
["Non Federal","562x - 611x","Association","Peabody","N/A","4-26-xxx","4-26-xxx / Peabody","Chrystie Anderson","615-322-2274","chrystie.anderson@vanderbilt.edu"]
["Non Federal","562x - 611x","Association","School of Medicine - Graduate Programs (BRET)","N/A","4-28-17x- & 14x","4-28-17x- & 14x / School of Medicine - Graduate Programs (BRET)","Chrystie Anderson","615-322-2274","chrystie.anderson@vanderbilt.edu"]
["Non Federal","562x - 611x","Association","School of Medicine - Vanderbilt Brain Institute","N/A","4-28-217","4-28-217 / School of Medicine - Vanderbilt Brain Institute","Chrystie Anderson","615-322-2274","chrystie.anderson@vanderbilt.edu"]
["Non Federal","562x - 611x","Association","School of Medicine -Molecular Physiology & Biophysics","POD 3","4-28-270 to 276 (not 274)","4-28-270 to 276 (not 274) / School of Medicine -Molecular Physiology & Biophysics","Chrystie Anderson","615-322-2274","chrystie.anderson@vanderbilt.edu"]
["Non Federal","562x - 611x","Association","School of Medicine - Cancer Biology","POD 3","4-28-286 to 288","4-28-286 to 288 / School of Medicine - Cancer Biology","Chrystie Anderson","615-322-2274","chrystie.anderson@vanderbilt.edu"]
["Non Federal","562x - 611x","Association","School of Medicine - Pharmacology","POD 3","4-28-290 & 294 & 295","4-28-290 & 294 & 295 / School of Medicine - Pharmacology","Chrystie Anderson","615-322-2274","chrystie.anderson@vanderbilt.edu"]
["Non Federal","562x - 611x","Association","School of Medicine - Drug Discovery (within Pharmacology)","POD 3","4-28-297","4-28-297 / School of Medicine - Drug Discovery (within Pharmacology)","Chrystie Anderson","615-322-2274","chrystie.anderson@vanderbilt.edu"]
["Non Federal","612x - 695x","Foundation","School of Medicine - Vanderbilt Institute of Chemical Biology (VCB)","POD 2","4-28-209","4-28-209 / School of Medicine - Vanderbilt Institute of Chemical Biology (VCB)","Jasmine Bellamy","615-343-6637","jasmine.c.bellamy@Vanderbilt.Edu"]
["Non Federal","612x - 695x","Foundation","School of Medicine - Center for Stem Cell Biology","POD 2","4-28-212 & 275","4-28-212 & 275 / School of Medicine - Center for Stem Cell Biology","Jasmine Bellamy","615-343-6637","jasmine.c.bellamy@Vanderbilt.Edu"]
["Non Federal","612x - 695x","Foundation","School of Medicine - Environmental Toxicology","POD 2","4-28-227 to 228","4-28-227 to 228 / School of Medicine - Environmental Toxicology","Jasmine Bellamy","615-343-6637","jasmine.c.bellamy@Vanderbilt.Edu"]
["Non Federal","612x - 695x","Foundation","School of Medicine - Mass Spectometry","POD 2","4-28-229","4-28-229 / School of Medicine - Mass Spectometry","Jasmine Bellamy","615-343-6637","jasmine.c.bellamy@Vanderbilt.Edu"]
["Non Federal","612x - 695x","Foundation","School of Medicine - Center for Structural Biology","POD 2","4-28-230","4-28-230 / School of Medicine - Center for Structural Biology","Jasmine Bellamy","615-343-6637","jasmine.c.bellamy@Vanderbilt.Edu"]
["Non Federal","612x - 695x","Foundation","School of Medicine - Biochemistry","POD 2","4-28-250 to 253 & 256","4-28-250 to 253 & 256 / School of Medicine - Biochemistry","Jasmine Bellamy","615-343-6637","jasmine.c.bellamy@Vanderbilt.Edu"]
["Non Federal","612x - 695x","Foundation","Arts & Sciences","N/A","4-20-xxx","4-20-xxx / Arts & Sciences","Jasmine Bellamy","615-343-6637","jasmine.c.bellamy@Vanderbilt.Edu"]
["Non Federal","612x - 695x","Foundation","Engineering","N/A","4-22-xxx","4-22-xxx / Engineering","Jasmine Bellamy","615-343-6637","jasmine.c.bellamy@Vanderbilt.Edu"]
["Non Federal","612x - 695x","Foundation","Law","N/A","4-24-xxx","4-24-xxx / Law","Jasmine Bellamy","615-343-6637","jasmine.c.bellamy@Vanderbilt.Edu"]
["Non Federal","612x - 695x","Foundation","Owen","N/A","4-25-xxx","4-25-xxx / Owen","Jasmine Bellamy","615-343-6637","jasmine.c.bellamy@Vanderbilt.Edu"]
["Non Federal","612x - 695x","Foundation","Blair","N/A","4-27-xxx","4-27-xxx / Blair","Jasmine Bellamy","615-343-6637","jasmine.c.bellamy@Vanderbilt.Edu"]
["Non Federal","612x - 695x","Foundation","Various Center/Institutes/Departments","N/A","4-30-xxx to 4-70-xxx","4-30-xxx to 4-70-xxx / Various Center/Institutes/Departments","Jasmine Bellamy","615-343-6637","jasmine.c.bellamy@Vanderbilt.Edu"]
["Non Federal","612x - 695x","Foundation","School of Medicine - Cell & Developmental Biology","POD 2","4-28-280 to 282","4-28-280 to 282 / School of Medicine - Cell & Developmental Biology","Jasmine Bellamy","615-343-6637","jasmine.c.bellamy@Vanderbilt.Edu"]
["Non Federal","612x - 695x","Foundation","School of Medicine - Center for Human Genetics","POD 3","4-28-226 & 274","4-28-226 & 274 / School of Medicine - Center for Human Genetics","Chrystie Anderson","615-322-2274","chrystie.anderson@vanderbilt.edu"]
["Non Federal","612x - 695x","Foundation","School of Medicine - Center for Molecular Neuroscience","POD 3","4-28-239","4-28-239 / School of Medicine - Center for Molecular Neuroscience","Chrystie Anderson","615-322-2274","chrystie.anderson@vanderbilt.edu"]
["Non Federal","612x - 695x","Foundation","School of Medicine -Molecular Physiology & Biophysics","POD 3","4-28-270 to 276 (not 274)","4-28-270 to 276 (not 274) / School of Medicine -Molecular Physiology & Biophysics","Chrystie Anderson","615-322-2274","chrystie.anderson@vanderbilt.edu"]
["Non Federal","612x - 695x","Foundation","Divinity","N/A","4-23-xxx","4-23-xxx / Divinity","Chrystie Anderson","615-322-2274","chrystie.anderson@vanderbilt.edu"]
["Non Federal","612x - 695x","Foundation","Peabody","N/A","4-26-xxx","4-26-xxx / Peabody","Chrystie Anderson","615-322-2274","chrystie.anderson@vanderbilt.edu"]
["Non Federal","612x - 695x","Foundation","School of Medicine - Graduate Programs (BRET)","N/A","4-28-17x- & 14x","4-28-17x- & 14x / School of Medicine - Graduate Programs (BRET)","Chrystie Anderson","615-322-2274","chrystie.anderson@vanderbilt.edu"]
["Non Federal","612x - 695x","Foundation","School of Medicine - Vanderbilt Brain Institute","N/A","4-28-217","4-28-217 / School of Medicine - Vanderbilt Brain Institute","Chrystie Anderson","615-322-2274","chrystie.anderson@vanderbilt.edu"]
["Non Federal","612x - 695x","Foundation","School of Medicine - Cancer Biology","N/A","4-28-286 to 288","4-28-286 to 288 / School of Medicine - Cancer Biology","Chrystie Anderson","615-322-2274","chrystie.anderson@vanderbilt.edu"]
["Non Federal","612x - 695x","Foundation","School of Medicine - Pharmacology","POD 3","4-28-290 & 294 & 295","4-28-290 & 294 & 295 / School of Medicine - Pharmacology","Chrystie Anderson","615-322-2274","chrystie.anderson@vanderbilt.edu"]
["Non Federal","612x - 695x","Foundation","School of Medicine - Drug Discovery (within Pharmacology)","POD 3","4-28-297","4-28-297 / School of Medicine - Drug Discovery (within Pharmacology)","Chrystie Anderson","615-322-2274","chrystie.anderson@vanderbilt.edu"]
["Non Federal","696x - 770x","Corporation","School of Medicine - Vanderbilt Institute of Chemical Biology (VCB)","POD 2","4-28-209","4-28-209 / School of Medicine - Vanderbilt Institute of Chemical Biology (VCB)","Jasmine Bellamy","615-343-6637","jasmine.c.bellamy@Vanderbilt.Edu"]
["Non Federal","696x - 770x","Corporation","School of Medicine - Center for Stem Cell Biology","POD 2","4-28-212 & 275","4-28-212 & 275 / School of Medicine - Center for Stem Cell Biology","Jasmine Bellamy","615-343-6637","jasmine.c.bellamy@Vanderbilt.Edu"]
["Non Federal","696x - 770x","Corporation","School of Medicine - Environmental Toxicology","POD 2","4-28-227 to 228","4-28-227 to 228 / School of Medicine - Environmental Toxicology","Jasmine Bellamy","615-343-6637","jasmine.c.bellamy@Vanderbilt.Edu"]
["Non Federal","696x - 770x","Corporation","School of Medicine - Mass Spectometry","POD 2","4-28-229","4-28-229 / School of Medicine - Mass Spectometry","Jasmine Bellamy","615-343-6637","jasmine.c.bellamy@Vanderbilt.Edu"]
["Non Federal","696x - 770x","Corporation","School of Medicine - Center for Structural Biology","POD 2","4-28-230","4-28-230 / School of Medicine - Center for Structural Biology","Jasmine Bellamy","615-343-6637","jasmine.c.bellamy@Vanderbilt.Edu"]
["Non Federal","696x - 770x","Corporation","School of Medicine - Biochemistry","POD 2","4-28-250 to 253 & 256","4-28-250 to 253 & 256 / School of Medicine - Biochemistry","Jasmine Bellamy","615-343-6637","jasmine.c.bellamy@Vanderbilt.Edu"]
["Non Federal","696x - 770x","Corporation","School of Medicine - Cell & Developmental Biology","POD 2","4-28-280 to 282","4-28-280 to 282 / School of Medicine - Cell & Developmental Biology","Jasmine Bellamy","615-343-6637","jasmine.c.bellamy@Vanderbilt.Edu"]
["Non Federal","696x - 770x","Corporation","Arts & Sciences","N/A","4-20-xxx","4-20-xxx / Arts & Sciences","Jasmine Bellamy","615-343-6637","jasmine.c.bellamy@Vanderbilt.Edu"]
["Non Federal","696x - 770x","Corporation","Engineering","N/A","4-22-xxx","4-22-xxx / Engineering","Jasmine Bellamy","615-343-6637","jasmine.c.bellamy@Vanderbilt.Edu"]
["Non Federal","696x - 770x","Corporation","Law","N/A","4-24-xxx","4-24-xxx / Law","Jasmine Bellamy","615-343-6637","jasmine.c.bellamy@Vanderbilt.Edu"]
["Non Federal","696x - 770x","Corporation","Owen","N/A","4-25-xxx","4-25-xxx / Owen","Jasmine Bellamy","615-343-6637","jasmine.c.bellamy@Vanderbilt.Edu"]
["Non Federal","696x - 770x","Corporation","Blair","N/A","4-27-xxx","4-27-xxx / Blair","Jasmine Bellamy","615-343-6637","jasmine.c.bellamy@Vanderbilt.Edu"]
["Non Federal","696x - 770x","Corporation","Various Center/Institutes/Departments","N/A","4-30-xxx to 4-70-xxx","4-30-xxx to 4-70-xxx / Various Center/Institutes/Departments","Jasmine Bellamy","615-343-6637","jasmine.c.bellamy@Vanderbilt.Edu"]
["Non Federal","696x - 770x","Corporation","School of Medicine - Center for Neuroscience Drug Discovery","POD 3","4-28-208","4-28-208 / School of Medicine - Center for Neuroscience Drug Discovery","Chrystie Anderson","615-322-2274","chrystie.anderson@vanderbilt.edu"]
["Non Federal","696x - 770x","Corporation","School of Medicine - Center for Human Genetics","POD 3","4-28-226 & 274","4-28-226 & 274 / School of Medicine - Center for Human Genetics","Chrystie Anderson","615-322-2274","chrystie.anderson@vanderbilt.edu"]
["Non Federal","696x - 770x","Corporation","School of Medicine - Center for Molecular Neuroscience","POD 3","4-28-239","4-28-239 / School of Medicine - Center for Molecular Neuroscience","Chrystie Anderson","615-322-2274","chrystie.anderson@vanderbilt.edu"]
["Non Federal","696x - 770x","Corporation","School of Medicine -Molecular Physiology & Biophysics","POD 3","4-28-270 to 276 (not 274)","4-28-270 to 276 (not 274) / School of Medicine -Molecular Physiology & Biophysics","Chrystie Anderson","615-322-2274","chrystie.anderson@vanderbilt.edu"]
["Non Federal","696x - 770x","Corporation","School of Medicine - Pharmacology","POD 3","4-28-290 & 294 & 295","4-28-290 & 294 & 295 / School of Medicine - Pharmacology","Chrystie Anderson","615-322-2274","chrystie.anderson@vanderbilt.edu"]
["Non Federal","696x - 770x","Corporation","Divinity","N/A","4-23-xxx","4-23-xxx / Divinity","Chrystie Anderson","615-322-2274","chrystie.anderson@vanderbilt.edu"]
["Non Federal","696x - 770x","Corporation","Peabody","N/A","4-26-xxx","4-26-xxx / Peabody","Chrystie Anderson","615-322-2274","chrystie.anderson@vanderbilt.edu"]
["Non Federal","696x - 770x","Corporation","School of Medicine - Graduate Programs (BRET)","N/A","4-28-17x- & 14x","4-28-17x- & 14x / School of Medicine - Graduate Programs (BRET)","Chrystie Anderson","615-322-2274","chrystie.anderson@vanderbilt.edu"]
["Non Federal","696x - 770x","Corporation","School of Medicine - Vanderbilt Brain Institute","N/A","4-28-217","4-28-217 / School of Medicine - Vanderbilt Brain Institute","Chrystie Anderson","615-322-2274","chrystie.anderson@vanderbilt.edu"]
["Non Federal","696x - 770x","Corporation","School of Medicine - Cancer Biology","N/A","4-28-286 to 288","4-28-286 to 288 / School of Medicine - Cancer Biology","Chrystie Anderson","615-322-2274","chrystie.anderson@vanderbilt.edu"]
["Non Federal","696x - 770x","Corporation","School of Medicine - Drug Discovery (within Pharmacology)","POD 3","4-28-297","4-28-297 / School of Medicine - Drug Discovery (within Pharmacology)","Chrystie Anderson","615-322-2274","chrystie.anderson@vanderbilt.edu"]
["Non Federal","771x - 780x","International","School of Medicine - Vanderbilt Institute of Chemical Biology (VCB)","POD 2","4-28-209","4-28-209 / School of Medicine - Vanderbilt Institute of Chemical Biology (VCB)","Jasmine Bellamy","615-343-6637","jasmine.c.bellamy@Vanderbilt.Edu"]
["Non Federal","771x - 780x","International","School of Medicine - Center for Stem Cell Biology","POD 2","4-28-212 & 275","4-28-212 & 275 / School of Medicine - Center for Stem Cell Biology","Jasmine Bellamy","615-343-6637","jasmine.c.bellamy@Vanderbilt.Edu"]
["Non Federal","771x - 780x","International","School of Medicine - Environmental Toxicology","POD 2","4-28-227 to 228","4-28-227 to 228 / School of Medicine - Environmental Toxicology","Jasmine Bellamy","615-343-6637","jasmine.c.bellamy@Vanderbilt.Edu"]
["Non Federal","771x - 780x","International","School of Medicine - Mass Spectometry","POD 2","4-28-229","4-28-229 / School of Medicine - Mass Spectometry","Jasmine Bellamy","615-343-6637","jasmine.c.bellamy@Vanderbilt.Edu"]
["Non Federal","771x - 780x","International","School of Medicine - Center for Structural Biology","POD 2","4-28-230","4-28-230 / School of Medicine - Center for Structural Biology","Jasmine Bellamy","615-343-6637","jasmine.c.bellamy@Vanderbilt.Edu"]
["Non Federal","771x - 780x","International","School of Medicine - Biochemistry","POD 2","4-28-250 to 253 & 256","4-28-250 to 253 & 256 / School of Medicine - Biochemistry","Jasmine Bellamy","615-343-6637","jasmine.c.bellamy@Vanderbilt.Edu"]
["Non Federal","771x - 780x","International","School of Medicine - Cell & Developmental Biology","POD 2","4-28-280 to 282","4-28-280 to 282 / School of Medicine - Cell & Developmental Biology","Jasmine Bellamy","615-343-6637","jasmine.c.bellamy@Vanderbilt.Edu"]
["Non Federal","771x - 780x","International","Arts & Sciences","N/A","4-20-xxx","4-20-xxx / Arts & Sciences","Jasmine Bellamy","615-343-6637","jasmine.c.bellamy@Vanderbilt.Edu"]
["Non Federal","771x - 780x","International","Engineering","N/A","4-22-xxx","4-22-xxx / Engineering","Jasmine Bellamy","615-343-6637","jasmine.c.bellamy@Vanderbilt.Edu"]
["Non Federal","771x - 780x","International","Law","N/A","4-24-xxx","4-24-xxx / Law","Jasmine Bellamy","615-343-6637","jasmine.c.bellamy@Vanderbilt.Edu"]
["Non Federal","771x - 780x","International","Owen","N/A","4-25-xxx","4-25-xxx / Owen","Jasmine Bellamy","615-343-6637","jasmine.c.bellamy@Vanderbilt.Edu"]
["Non Federal","771x - 780x","International","Blair","N/A","4-27-xxx","4-27-xxx / Blair","Jasmine Bellamy","615-343-6637","jasmine.c.bellamy@Vanderbilt.Edu"]
["Non Federal","771x - 780x","International","Various Center/Institutes/Departments","N/A","4-30-xxx to 4-70-xxx","4-30-xxx to 4-70-xxx / Various Center/Institutes/Departments","Jasmine Bellamy","615-343-6637","jasmine.c.bellamy@Vanderbilt.Edu"]
["Non Federal","771x - 780x","International","School of Medicine - Center for Neuroscience Drug Discovery","POD 3","4-28-208","4-28-208 / School of Medicine - Center for Neuroscience Drug Discovery","Chrystie Anderson","615-322-2274","chrystie.anderson@vanderbilt.edu"]
["Non Federal","771x - 780x","International","School of Medicine - Center for Human Genetics","POD 3","4-28-226 & 274","4-28-226 & 274 / School of Medicine - Center for Human Genetics","Chrystie Anderson","615-322-2274","chrystie.anderson@vanderbilt.edu"]
["Non Federal","771x - 780x","International","School of Medicine - Center for Molecular Neuroscience","POD 3","4-28-239","4-28-239 / School of Medicine - Center for Molecular Neuroscience","Chrystie Anderson","615-322-2274","chrystie.anderson@vanderbilt.edu"]
["Non Federal","771x - 780x","International","School of Medicine -Molecular Physiology & Biophysics","POD 3","4-28-270 to 276 (not 274)","4-28-270 to 276 (not 274) / School of Medicine -Molecular Physiology & Biophysics","Chrystie Anderson","615-322-2274","chrystie.anderson@vanderbilt.edu"]
["Non Federal","771x - 780x","International","School of Medicine - Pharmacology","POD 3","4-28-290 & 294 & 295","4-28-290 & 294 & 295 / School of Medicine - Pharmacology","Chrystie Anderson","615-322-2274","chrystie.anderson@vanderbilt.edu"]
["Non Federal","771x - 780x","International","School of Medicine - Drug Discovery (within Pharmacology)","POD 3","4-28-297","4-28-297 / School of Medicine - Drug Discovery (within Pharmacology)","Chrystie Anderson","615-322-2274","chrystie.anderson@vanderbilt.edu"]
["Non Federal","771x - 780x","International","Divinity","N/A","4-23-xxx","4-23-xxx / Divinity","Chrystie Anderson","615-322-2274","chrystie.anderson@vanderbilt.edu"]
["Non Federal","771x - 780x","International","Peabody","N/A","4-26-xxx","4-26-xxx / Peabody","Chrystie Anderson","615-322-2274","chrystie.anderson@vanderbilt.edu"]
["Non Federal","771x - 780x","International","School of Medicine - Graduate Programs (BRET)","N/A","4-28-17x- & 14x","4-28-17x- & 14x / School of Medicine - Graduate Programs (BRET)","Chrystie Anderson","615-322-2274","chrystie.anderson@vanderbilt.edu"]
["Non Federal","771x - 780x","International","School of Medicine - Vanderbilt Brain Institute","N/A","4-28-217","4-28-217 / School of Medicine - Vanderbilt Brain Institute","Chrystie Anderson","615-322-2274","chrystie.anderson@vanderbilt.edu"]
["Non Federal","771x - 780x","International","School of Medicine - Cancer Biology","N/A","4-28-286 to 288","4-28-286 to 288 / School of Medicine - Cancer Biology","Chrystie Anderson","615-322-2274","chrystie.anderson@vanderbilt.edu"]
["Non Federal","921x - 959x","University","School of Medicine - Vanderbilt Institute of Chemical Biology (VCB)","POD 2","4-28-209","4-28-209 / School of Medicine - Vanderbilt Institute of Chemical Biology (VCB)","Jasmine Bellamy","615-343-6637","jasmine.c.bellamy@Vanderbilt.Edu"]
["Non Federal","921x - 959x","University","School of Medicine - Center for Stem Cell Biology","POD 2","4-28-212 & 275","4-28-212 & 275 / School of Medicine - Center for Stem Cell Biology","Jasmine Bellamy","615-343-6637","jasmine.c.bellamy@Vanderbilt.Edu"]
["Non Federal","921x - 959x","University","School of Medicine - Environmental Toxicology","POD 2","4-28-227 to 228","4-28-227 to 228 / School of Medicine - Environmental Toxicology","Jasmine Bellamy","615-343-6637","jasmine.c.bellamy@Vanderbilt.Edu"]
["Non Federal","921x - 959x","University","School of Medicine - Mass Spectometry","POD 2","4-28-229","4-28-229 / School of Medicine - Mass Spectometry","Jasmine Bellamy","615-343-6637","jasmine.c.bellamy@Vanderbilt.Edu"]
["Non Federal","921x - 959x","University","School of Medicine - Center for Structural Biology","POD 2","4-28-230","4-28-230 / School of Medicine - Center for Structural Biology","Jasmine Bellamy","615-343-6637","jasmine.c.bellamy@Vanderbilt.Edu"]
["Non Federal","921x - 959x","University","School of Medicine - Biochemistry","POD 2","4-28-250 to 253 & 256","4-28-250 to 253 & 256 / School of Medicine - Biochemistry","Jasmine Bellamy","615-343-6637","jasmine.c.bellamy@Vanderbilt.Edu"]
["Non Federal","921x - 959x","University","School of Medicine - Cell & Developmental Biology","POD 2","4-28-280 to 282","4-28-280 to 282 / School of Medicine - Cell & Developmental Biology","Jasmine Bellamy","615-343-6637","jasmine.c.bellamy@Vanderbilt.Edu"]
["Non Federal","921x - 959x","University","Arts & Sciences","N/A","4-20-xxx","4-20-xxx / Arts & Sciences","Jasmine Bellamy","615-343-6637","jasmine.c.bellamy@Vanderbilt.Edu"]
["Non Federal","921x - 959x","University","Engineering","N/A","4-22-xxx","4-22-xxx / Engineering","Jasmine Bellamy","615-343-6637","jasmine.c.bellamy@Vanderbilt.Edu"]
["Non Federal","921x - 959x","University","Law","N/A","4-24-xxx","4-24-xxx / Law","Jasmine Bellamy","615-343-6637","jasmine.c.bellamy@Vanderbilt.Edu"]
["Non Federal","921x - 959x","University","Owen","N/A","4-25-xxx","4-25-xxx / Owen","Jasmine Bellamy","615-343-6637","jasmine.c.bellamy@Vanderbilt.Edu"]
["Non Federal","921x - 959x","University","Blair","N/A","4-27-xxx","4-27-xxx / Blair","Jasmine Bellamy","615-343-6637","jasmine.c.bellamy@Vanderbilt.Edu"]
["Non Federal","921x - 959x","University","Various Center/Institutes/Departments","N/A","4-30-xxx to 4-70-xxx","4-30-xxx to 4-70-xxx / Various Center/Institutes/Departments","Jasmine Bellamy","615-343-6637","jasmine.c.bellamy@Vanderbilt.Edu"]
["Non Federal","921x - 959x","University","School of Medicine - Center for Neuroscience Drug Discovery","POD 3","4-28-208","4-28-208 / School of Medicine - Center for Neuroscience Drug Discovery","Chrystie Anderson","615-322-2274","chrystie.anderson@vanderbilt.edu"]
["Non Federal","921x - 959x","University","School of Medicine - Center for Human Genetics","POD 3","4-28-226 & 274","4-28-226 & 274 / School of Medicine - Center for Human Genetics","Chrystie Anderson","615-322-2274","chrystie.anderson@vanderbilt.edu"]
["Non Federal","921x - 959x","University","School of Medicine - Center for Molecular Neuroscience","POD 3","4-28-239","4-28-239 / School of Medicine - Center for Molecular Neuroscience","Chrystie Anderson","615-322-2274","chrystie.anderson@vanderbilt.edu"]
["Non Federal","921x - 959x","University","School of Medicine -Molecular Physiology & Biophysics","POD 3","4-28-270 to 276 (not 274)","4-28-270 to 276 (not 274) / School of Medicine -Molecular Physiology & Biophysics","Chrystie Anderson","615-322-2274","chrystie.anderson@vanderbilt.edu"]
["Non Federal","921x - 959x","University","School of Medicine - Pharmacology","POD 3","4-28-290 & 294 & 295","4-28-290 & 294 & 295 / School of Medicine - Pharmacology","Chrystie Anderson","615-322-2274","chrystie.anderson@vanderbilt.edu"]
["Non Federal","921x - 959x","University","School of Medicine - Drug Discovery (within Pharmacology)","POD 3","4-28-297","4-28-297 / School of Medicine - Drug Discovery (within Pharmacology)","Chrystie Anderson","615-322-2274","chrystie.anderson@vanderbilt.edu"]
["Non Federal","921x - 959x","University","Divinity","N/A","4-23-xxx","4-23-xxx / Divinity","Chrystie Anderson","615-322-2274","chrystie.anderson@vanderbilt.edu"]
["Non Federal","921x - 959x","University","Peabody","N/A","4-26-xxx","4-26-xxx / Peabody","Chrystie Anderson","615-322-2274","chrystie.anderson@vanderbilt.edu"]
["Non Federal","921x - 959x","University","School of Medicine - Graduate Programs (BRET)","N/A","4-28-17x- & 14x","4-28-17x- & 14x / School of Medicine - Graduate Programs (BRET)","Chrystie Anderson","615-322-2274","chrystie.anderson@vanderbilt.edu"]
["Non Federal","921x - 959x","University","School of Medicine - Vanderbilt Brain Institute","N/A","4-28-217","4-28-217 / School of Medicine - Vanderbilt Brain Institute","Chrystie Anderson","615-322-2274","chrystie.anderson@vanderbilt.edu"]
["Non Federal","921x - 959x","University","School of Medicine - Cancer Biology","N/A","4-28-286 to 288","4-28-286 to 288 / School of Medicine - Cancer Biology","Chrystie Anderson","615-322-2274","chrystie.anderson@vanderbilt.edu"]
["Non Federal","All","Recharge & Internally Designated Centers x-888-xxxx or x-999-xxxx","All Schools/Departments/Centers/Institutes","N/A","N/A","N/A / All Schools/Departments/Centers/Institutes","Emma Pacilli","615-875-8154","emma.pacilli@vanderbilt.edu"]
["Non Federal","All","Subcontracts","All Schools/Departments/Centers/Institutes","N/A","N/A","N/A / All Schools/Departments/Centers/Institutes","Gloria Mayberry","(615) 322-4613","gloria.c.mayberry@vanderbilt.edu"]
["Non Federal","All","Invoicing","All Schools/Departments/Centers/Institutes","N/A","N/A","N/A / All Schools/Departments/Centers/Institutes","Peggy Howard","615-343-6671","peggy.howard@Vanderbilt.Edu"]

{"sheet":"phone list","index":1,"n_rows":14,"n_cols":2,"rows_kept":14,"cut":false,"hidden":false,"merged":[]}
["Responsible Person","Phone"]
["Matt Murphy","615-343-0133"]
["Michele Espy Dixon","615-343-2930"]
["Donna Irwin","615-343-6682"]
["Olivia Soxayachanh","615-343-6671"]
["Courtney Ely","615-343-6637"]
["Denise Johnson","615-343-6672"]
["Gloria Mayberry","(615) 322-4613"]
["Chrystie Anderson","615-322-2274"]
["Anne Garrett","615-322-2929"]
["Sharon Ridley  or Trina Whipple","615-322-2929"]
["Emma Pacilli","615-875-8154"]
["Peggy Howard","615-343-6671"]
["Leigh Thompson","615-343-6637"]